fUSD/lending_fUSD_20241027
["ID","MTS","AMOUNT","RATE_DAILY","PERIOD"]
[340880174,1730001044732,-500.0,0.00043835,5]
[340880175,1730001044742,-500.0,0.00043835,5]
[340880176,1730001044753,-500.0,0.00043835,5]
[340880177,1730001044763,-500.0,0.00043835,5]
[340880178,1730001044773,-500.0,0.00043835,5]
[340880179,1730001044783,-500.0,0.00043835,5]
[340880180,1730001044793,-349.37100075,0.00043835,5]
[340880181,1730001044803,-209.91478707,0.00043835,5]
[340880182,1730001044812,-500.0,0.00043835,5]
[340880183,1730001044822,-553.42280771,0.00043835,5]
[340880184,1730001044832,-193.6220038,0.00043835,5]
[340880185,1730001044842,-500.0,0.00043835,5]
[340880186,1730001044850,-540.33982461,0.00043835,5]
[340880187,1730001044861,-500.0,0.00043835,5]
[340880188,1730001044870,-500.0,0.00043835,5]
[340880189,1730001044879,-500.0,0.00043835,5]
[340880190,1730001044888,-500.0,0.00043835,5]
[340880191,1730001044896,-500.0,0.00043835,5]
[340880192,1730001044905,-500.0,0.00043835,5]
[340880193,1730001044915,-500.0,0.00043835,5]
[340880194,1730001044924,-500.0,0.00043835,5]
[340880195,1730001044933,-500.0,0.00043835,5]
[340880196,1730001044943,-387.97577266,0.00043835,5]
[340880197,1730001044952,-500.0,0.00043835,5]
[340880198,1730001044962,-520.67654154,0.00043835,5]
[340880199,1730001044972,-500.0,0.00043835,5]
[340880200,1730001044985,-485.47525075,0.00043835,5]
[340880201,1730001044994,-500.0,0.00043835,5]
[340880202,1730001045004,-428.38798125,0.00043835,5]
[340880203,1730001045013,-500.0,0.00043835,5]
[340880204,1730001045022,-506.32867158,0.00043835,5]
[340880205,1730001045032,-500.0,0.00043835,5]
[340880206,1730001045041,-500.0,0.00043835,5]
[340880207,1730001045051,-500.0,0.00043835,5]
[340880208,1730001045061,-500.0,0.00043835,5]
[340880209,1730001045070,-500.0,0.00043835,5]
[340880210,1730001045147,-500.0,0.00043835,5]
[340880211,1730001045157,-500.0,0.00043835,5]
[340880212,1730001045167,-500.0,0.00043835,5]
[340880213,1730001045177,-500.0,0.00043835,5]
[340880214,1730001045186,-501.86639446,0.00043835,5]
[340880215,1730001045196,-500.0,0.00043835,5]
[340880216,1730001045205,-531.04908332,0.00043835,5]
[340880217,1730001045215,-500.0,0.00043835,5]
[340880218,1730001045224,-500.0,0.00043835,5]
[340880219,1730001045234,-500.0,0.00043835,5]
[340880220,1730001045244,-500.0,0.00043835,5]
[340880221,1730001045255,-500.0,0.00043835,5]
[340880222,1730001045264,-213.53315305,0.00043835,5]
[340880223,1730001045274,-500.0,0.00043835,5]
[340880224,1730001045284,-500.0,0.00043835,5]
[340880225,1730001045294,-500.0,0.00043835,5]
[340880226,1730001045304,-500.0,0.00043835,5]
[340880227,1730001045312,-500.0,0.00043835,5]
[340880228,1730001045320,-500.0,0.00043835,5]
[340880229,1730001045327,-500.0,0.00043835,5]
[340880230,1730001045334,-369.39690737,0.00043835,5]
[340880231,1730001045341,-500.0,0.00043835,5]
[340880232,1730001045349,-500.0,0.00043835,5]
[340880233,1730001045358,-500.0,0.00043835,5]
[340880234,1730001045368,-500.0,0.00043835,5]
[340880235,1730001045379,-500.0,0.00043835,5]
[340880236,1730001045389,-637.98592335,0.00043835,5]
[340880237,1730001045399,-500.0,0.00043835,5]
[340880238,1730001045409,-500.0,0.00043835,5]
[340880239,1730001045418,-500.0,0.00043835,5]
[340880240,1730001045428,-500.0,0.00043835,5]
[340880241,1730001045438,-500.0,0.00043835,5]
[340880242,1730001045448,-500.0,0.00043835,5]
[340880243,1730001045457,-500.0,0.00043835,5]
[340880244,1730001045467,-500.0,0.00043835,5]
[340880245,1730001045476,-500.0,0.00043835,5]
[340880246,1730001045486,-500.0,0.00043835,5]
[340880247,1730001045497,-500.0,0.00043835,5]
[340880248,1730001045507,-591.47644716,0.00043835,5]
[340880249,1730001045516,-506.0838061,0.00043835,5]
[340880250,1730001045526,-557.74509385,0.00043835,5]
[340880251,1730001045535,-243.08819276,0.00043835,5]
[340880252,1730001045545,-500.0,0.00043835,5]
[340880253,1730001045555,-500.0,0.00043835,5]
[340880254,1730001045564,-500.0,0.00043835,5]
[340880255,1730001045574,-500.0,0.00043835,5]
[340880256,1730001045583,-500.0,0.00043835,5]
[340880257,1730001045593,-500.0,0.00043835,5]
[340880258,1730001045603,-500.0,0.00043835,5]
[340880259,1730001045612,-500.0,0.00043835,5]
[340880260,1730001045622,-529.97210082,0.00043835,5]
[340880261,1730001045632,-111.90083973,0.00043835,5]
[340880262,1730001045711,-1086.0,0.0003738,2]
[340880263,1730001045728,-1086.0,0.0004038,2]
[340880264,1730001045743,-150.01,0.00042176,2]
[340880265,1730001045760,-500.0,0.000425,120]
[340880266,1730001045776,-500.0,0.000425,120]
[340880267,1730001045793,-500.0,0.000425,120]
[340880268,1730001045810,-500.0,0.000425,120]
[340880269,1730001045825,-500.0,0.000425,120]
[340880270,1730001045840,-500.0,0.000425,120]
[340880271,1730001045856,-500.0,0.000425,120]
[340880272,1730001045870,-500.0,0.000425,120]
[340880273,1730001045883,-500.0,0.000425,120]
[340880274,1730001045897,-1086.0,0.0004338,2]
[340880275,1730001045913,-388.09916027,0.00043835,5]
[340880276,1730001045930,-509.59925405,0.00043835,5]
[340880277,1730001045946,-500.0,0.00043835,5]
[340880278,1730001045958,-500.0,0.00043835,5]
[340880279,1730001045971,-500.0,0.00043835,5]
[340880280,1730001045991,-500.0,0.00043835,5]
[340880281,1730001046004,-500.0,0.00043835,5]
[340880282,1730001046018,-500.0,0.00043835,5]
[340880283,1730001046032,-450.81174664,0.00043835,5]
[340880284,1730001046384,-152.44955259,0.00015496,2]
[340880285,1730001046398,-957.71720728,0.00042176,2]
[340880286,1730001046412,-500.0,0.000425,120]
[340880287,1730001046426,-500.0,0.000425,120]
[340880288,1730001046441,-500.0,0.000425,120]
[340880289,1730001046453,-500.0,0.000425,120]
[340880290,1730001046463,-500.0,0.000425,120]
[340880291,1730001046474,-500.0,0.000425,120]
[340880292,1730001046484,-500.0,0.000425,120]
[340880293,1730001046495,-500.0,0.000425,120]
[340880294,1730001046504,-500.0,0.000425,120]
[340880295,1730001046515,-49.18825336,0.00043835,5]
[340880296,1730001046525,-500.0,0.00043835,5]
[340880297,1730001046534,-500.0,0.00043835,5]
[340880298,1730001046544,-500.0,0.00043835,5]
[340880299,1730001046554,-512.16466643,0.00043835,5]
[340880300,1730001046563,-500.0,0.00043835,5]
[340880301,1730001046573,-500.0,0.00043835,5]
[340880302,1730001046583,-500.0,0.00043835,5]
[340880303,1730001046594,-500.0,0.00043835,5]
[340880304,1730001046604,-500.0,0.00043835,5]
[340880305,1730001046614,-500.0,0.00043835,5]
[340880306,1730001046624,-293.76821528,0.00043835,5]
[340880307,1730001046634,-1295.43,0.00043835,5]
[340880308,1730001046644,-1295.43,0.00043835,5]
[340880311,1730001046796,-1295.43,0.00043835,5]
[340880312,1730001046809,-547.35492257,0.00043835,5]
[340880313,1730001046818,-1295.43,0.00043835,5]
[340880314,1730001046828,-1295.43,0.00043835,5]
[340880315,1730001046838,-171.67991331,0.00043835,5]
[340880316,1730001046847,-500.0,0.00043835,5]
[340880317,1730001046856,-500.0,0.00043835,5]
[340880318,1730001046865,-546.28553034,0.00043835,5]
[340880319,1730001046875,-500.0,0.00043835,5]
[340880320,1730001046884,-514.97911253,0.00043835,5]
[340880321,1730001046892,-304.84942216,0.00043835,5]
[340880322,1730001046901,-199.83589855,0.00043835,5]
[340880323,1730001046910,-500.0,0.00043835,5]
[340880324,1730001046919,-194.88415603,0.00043835,5]
[340880325,1730001046928,-500.0,0.00043835,5]
[340880326,1730001046937,-500.0,0.00043835,5]
[340880327,1730001046946,-500.0,0.00043835,5]
[340880328,1730001046956,-500.0,0.00043835,5]
[340880329,1730001046966,-500.0,0.00043835,5]
[340880330,1730001046976,-500.0,0.00043835,5]
[340880331,1730001046989,-512.2230525,0.00043835,5]
[340880332,1730001046998,-500.0,0.00043835,5]
[340880333,1730001047008,-220.2190417,0.00043835,5]
[340880334,1730001047020,-509.55,0.00043835,5]
[340880335,1730001047030,-509.55,0.00043835,5]
[340880336,1730001047039,-509.55,0.00043835,5]
[340880337,1730001047049,-509.55,0.00043835,5]
[340880338,1730001047059,-509.55,0.00043835,5]
[340880339,1730001047068,-500.0,0.00043835,5]
[340880340,1730001047077,-500.0,0.00043835,5]
[340880341,1730001047087,-201.17233844,0.00043835,5]
[340880342,1730001047097,-500.0,0.00043835,5]
[340880343,1730001047106,-500.0,0.00043835,5]
[340880344,1730001047115,-500.0,0.00043835,5]
[340880345,1730001047124,-500.0,0.00043835,5]
[340880346,1730001047134,-500.0,0.00043835,5]
[340880347,1730001047143,-500.0,0.00043835,5]
[340880348,1730001047153,-500.0,0.00043835,5]
[340880349,1730001047163,-500.0,0.00043835,5]
[340880350,1730001047172,-500.0,0.00043835,5]
[340880351,1730001047182,-500.0,0.00043835,5]
[340880352,1730001047191,-500.0,0.00043835,5]
[340880353,1730001047201,-500.0,0.00043835,5]
[340880354,1730001047211,-340.14972199,0.00043835,5]
[340880355,1730001047220,-500.0,0.00043835,5]
[340880356,1730001047231,-155.3582678,0.00043835,5]
[340880357,1730001047242,-500.0,0.00043835,5]
[340880358,1730001047252,-500.0,0.00043835,5]
[340880359,1730001047268,-500.0,0.00043835,5]
[340880360,1730001047278,-500.0,0.00043835,5]
[340880361,1730001047289,-536.70427936,0.00043835,5]
[340880362,1730001047299,-500.0,0.00043835,5]
[340880363,1730001047309,-500.0,0.00043835,5]
[340880364,1730001047319,-500.0,0.00043835,5]
[340880365,1730001047328,-500.0,0.00043835,5]
[340880366,1730001047338,-500.0,0.00043835,5]
[340880367,1730001047347,-500.0,0.00043835,5]
[340880368,1730001047356,-500.0,0.00043835,5]
[340880369,1730001047367,-500.0,0.00043835,5]
[340880370,1730001047377,-564.28,0.00043835,5]
[340880371,1730001047387,-500.0,0.00043835,5]
[340880372,1730001047399,-500.0,0.00043835,5]
[340880373,1730001047409,-500.0,0.00043835,5]
[340880374,1730001047419,-564.28,0.00043835,5]
[340880375,1730001047428,-500.0,0.00043835,5]
[340880376,1730001047438,-564.28,0.00043835,5]
[340880377,1730001047449,-564.28,0.00043835,5]
[340880378,1730001047460,-500.0,0.00043835,5]
[340880379,1730001047469,-564.28,0.00043835,5]
[340880380,1730001047480,-500.0,0.00043835,5]
[340880381,1730001047491,-564.28,0.00043835,5]
[340880382,1730001047502,-500.0,0.00043835,5]
[340880383,1730001047512,-846.58,0.00043835,5]
[340880384,1730001047522,-846.58,0.00043835,5]
[340880385,1730001047533,-500.0,0.00043835,5]
[340880386,1730001047542,-500.0,0.00043835,5]
[340880387,1730001047553,-846.58,0.00043835,5]
[340880388,1730001047566,-281.35412754,0.00043835,5]
[340880389,1730001047576,-846.58,0.00043835,5]
[340880390,1730001047586,-500.0,0.00043835,5]
[340880391,1730001047595,-846.58,0.00043835,5]
[340880392,1730001047606,-494.56509209,0.00043835,5]
[340880393,1730001047616,-500.0,0.00043835,5]
[340880394,1730001047625,-592.12839771,0.00043835,5]
[340880395,1730001047636,-500.0,0.00043835,5]
[340880396,1730001047645,-542.2902221,0.00043835,5]
[340880397,1730001047655,-155.56906038,0.00043835,5]
[340880398,1730001047664,-500.0,0.00043835,5]
[340880399,1730001047674,-500.0,0.00043835,5]
[340880400,1730001047684,-160.06057864,0.00043835,5]
[340880401,1730001047693,-500.0,0.00043835,5]
[340880402,1730001047703,-536.97207433,0.00043835,5]
[340880403,1730001047712,-500.0,0.00043835,5]
[340880404,1730001047722,-286.21606878,0.00043835,5]
[340880405,1730001047734,-500.0,0.00043835,5]
[340880406,1730001047746,-500.0,0.00043835,5]
[340880407,1730001047756,-500.0,0.00043835,5]
[340880408,1730001047765,-500.0,0.00043835,5]
[340880409,1730001047775,-500.0,0.00043835,5]
[340880410,1730001047784,-500.0,0.00043835,5]
[340880411,1730001047794,-259.88958468,0.00043835,5]
[340880412,1730001047803,-500.0,0.00043835,5]
[340880413,1730001047812,-1000.0,0.00043835,120]
[340880414,1730001047822,-1023.7302703,0.00043835,120]
[340880415,1730001047832,-1409.36,0.00043835,5]
[340880416,1730001047841,-1409.36,0.00043835,5]
[340880417,1730001047851,-1409.36,0.00043835,5]
[340880418,1730001047860,-1409.36,0.00043835,5]
[340880419,1730001047869,-1409.36,0.00043835,5]
[340880420,1730001047879,-5030.72,0.00043835,5]
[340880421,1730001047889,-5030.72,0.00043835,5]
[340880422,1730001047898,-5030.72,0.00043835,5]
[340880423,1730001047907,-167.9161183,0.00043835,5]
[340880424,1730001047916,-5030.72,0.00043835,5]
[340880425,1730001047926,-5030.72,0.00043835,5]
[340880426,1730001047935,-5030.72,0.00043835,5]
[340880427,1730001047945,-5030.72,0.00043835,5]
[340880428,1730001047954,-160.24982304,0.00043835,5]
[340880429,1730001047964,-287.2539474,0.00043835,5]
[340880430,1730001047973,-176.80315718,0.00043835,5]
[340880431,1730001047986,-515.6432625,0.00043835,5]
[340880432,1730001047996,-500.0,0.00043835,5]
[340880433,1730001048005,-210.17905268,0.00043835,5]
[340880434,1730001048015,-500.0,0.00043835,5]
[340880435,1730001048025,-500.0,0.00043835,5]
[340880436,1730001048034,-500.0,0.00043835,5]
[340880437,1730001048045,-500.0,0.00043835,2]
[340880438,1730001048055,-500.0,0.00043835,5]
[340880439,1730001048066,-500.0,0.00043835,2]
[340880440,1730001048075,-151.18884603,0.00043835,5]
[340880441,1730001048085,-525.46,0.00043835,5]
[340880442,1730001048094,-525.46,0.00043835,5]
[340880443,1730001048103,-500.0,0.00043835,2]
[340880444,1730001048112,-525.46,0.00043835,5]
[340880445,1730001048121,-500.0,0.00043835,2]
[340880446,1730001048131,-525.46,0.00043835,5]
[340880447,1730001048140,-500.0,0.00043835,2]
[340880448,1730001048150,-618.24034894,0.00043835,5]
[340880449,1730001048159,-525.46,0.00043835,5]
[340880450,1730001048168,-500.0,0.00043835,5]
[340880451,1730001048178,-564.27411764,0.00043835,5]
[340880452,1730001048187,-192.98136748,0.00043835,5]
[340880453,1730001048196,-622.12,0.00043835,5]
[340880454,1730001048206,-622.12,0.00043835,5]
[340880455,1730001048215,-622.12,0.00043835,5]
[340880456,1730001048224,-622.12,0.00043835,5]
[340880457,1730001048234,-622.12,0.00043835,5]
[340880458,1730001048243,-622.12,0.00043835,5]
[340880459,1730001048252,-622.12,0.00043835,5]
[340880460,1730001048262,-537.52836829,0.00043835,5]
[340880461,1730001048271,-500.0,0.00043835,5]
[340880462,1730001048280,-500.0,0.00043835,5]
[340880463,1730001048289,-500.0,0.00043835,5]
[340880464,1730001048298,-500.0,0.00043835,5]
[340880465,1730001048308,-456.10587232,0.00043835,5]
[340880466,1730001048317,-195.35442039,0.00043835,5]
[340880467,1730001048326,-500.0,0.00043835,5]
[340880468,1730001048335,-500.0,0.00043835,5]
[340880469,1730001048345,-261.07429774,0.00043835,5]
[340880470,1730001048354,-521.97248549,0.00043835,5]
[340880471,1730001048363,-500.0,0.00043835,5]
[340880472,1730001048373,-500.0,0.00043835,5]
[340880473,1730001048382,-500.0,0.00043835,5]
[340880474,1730001048392,-357.80182602,0.00043835,5]
[340880475,1730001048401,-510.11,0.00043835,5]
[340880476,1730001048409,-510.11,0.00043835,5]
[340880477,1730001048418,-510.11,0.00043835,5]
[340880478,1730001048427,-510.11,0.00043835,5]
[340880479,1730001048436,-510.11,0.00043835,5]
[340880480,1730001048445,-510.11,0.00043835,5]
[340880481,1730001048456,-500.0,0.00043835,5]
[340880482,1730001048465,-518.65661835,0.00043835,5]
[340880483,1730001048475,-510.11,0.00043835,5]
[340880484,1730001048484,-509.88410334,0.00043835,5]
[340880485,1730001048493,-500.0,0.00043835,5]
[340880486,1730001048502,-500.0,0.00043835,5]
[340880487,1730001048514,-500.0,0.00043835,5]
[340880488,1730001048524,-500.0,0.00043835,5]
[340880489,1730001048533,-500.0,0.00043835,5]
[340880490,1730001048542,-500.0,0.00043835,5]
[340880491,1730001048552,-476.36648772,0.00043835,5]
[340880492,1730001048561,-413.3611,0.00043835,5]
[340880493,1730001048570,-500.0,0.00043835,5]
[340880494,1730001048580,-514.59312871,0.00043835,5]
[340880495,1730001048589,-500.0,0.00043835,5]
[340880496,1730001048599,-511.06602965,0.00043835,5]
[340880497,1730001048609,-519.90124127,0.00043835,5]
[340880498,1730001048619,-222.72153331,0.00043835,5]
[340880499,1730001048629,-500.0,0.00043835,5]
[340880500,1730001048639,-500.0,0.00043835,5]
[340880501,1730001048648,-565.62149799,0.00043835,5]
[340880502,1730001048657,-500.0,0.00043835,5]
[340880503,1730001048666,-454.76032107,0.00043835,5]
[340880504,1730001048676,-500.0,0.00043835,5]
[340880505,1730001048685,-523.81962855,0.00043835,5]
[340880506,1730001048694,-172.17385427,0.00043835,5]
[340880507,1730001048703,-500.0,0.00043835,5]
[340880508,1730001048713,-500.0,0.00043835,5]
[340880509,1730001048731,-212.0878736,0.00043835,5]
[340880510,1730001048742,-516.90672455,0.00043835,5]
[340880511,1730001048752,-500.0,0.00043835,5]
[340880512,1730001048762,-500.0,0.00043835,5]
[340880513,1730001048772,-500.0,0.00043835,5]
[340880514,1730001048782,-500.0,0.00043835,5]
[340880515,1730001048791,-500.0,0.00043835,5]
[340880516,1730001048800,-184.73010174,0.00043835,5]
[340880517,1730001048809,-184.56338352,0.00043835,5]
[340880518,1730001048819,-608.13,0.00043835,5]
[340880519,1730001048828,-608.13,0.00043835,5]
[340880520,1730001048837,-175.4966583,0.00043835,5]
[340880521,1730001048846,-608.13,0.00043835,5]
[340880522,1730001048855,-608.13,0.00043835,5]
[340880523,1730001048864,-608.13,0.00043835,5]
[340880524,1730001048878,-500.0,0.00043835,5]
[340880525,1730001048887,-504.03597407,0.00043835,5]
[340880526,1730001048896,-171.42052993,0.00043835,5]
[340880527,1730001048905,-622.95052157,0.00043835,5]
[340880528,1730001048914,-500.0,0.00043835,5]
[340880529,1730001048923,-500.0,0.00043835,5]
[340880530,1730001048933,-317.96571732,0.00043835,5]
[340880531,1730001048942,-500.0,0.00043835,5]
[340880532,1730001048952,-504.13470824,0.00043835,5]
[340880533,1730001048961,-500.0,0.00043835,5]
[340880534,1730001048971,-164.82792841,0.00043835,120]
[340880535,1730001048984,-500.0,0.00043835,5]
[340880536,1730001048993,-500.0,0.00043835,5]
[340880537,1730001049002,-500.0,0.00043835,5]
[340880538,1730001049013,-500.0,0.00043835,5]
[340880539,1730001049022,-500.0,0.00043835,5]
[340880540,1730001049031,-500.0,0.00043835,5]
[340880541,1730001049040,-500.0,0.00043835,5]
[340880542,1730001049050,-500.0,0.00043835,5]
[340880543,1730001049059,-500.0,0.00043835,5]
[340880544,1730001049069,-500.0,0.00043835,5]
[340880545,1730001049078,-500.0,0.00043835,5]
[340880546,1730001049087,-500.0,0.00043835,5]
[340880547,1730001049097,-500.0,0.00043835,5]
[340880548,1730001049106,-500.0,0.00043835,5]
[340880549,1730001049115,-500.0,0.00043835,5]
[340880550,1730001049124,-258.33169042,0.00043835,5]
[340880551,1730001049134,-500.0,0.00043835,5]
[340880552,1730001049144,-500.0,0.00043835,5]
[340880553,1730001049153,-609.28432373,0.00043835,5]
[340880554,1730001049163,-500.0,0.00043835,5]
[340880555,1730001049172,-500.0,0.00043835,5]
[340880556,1730001049181,-500.0,0.00043835,5]
[340880557,1730001049191,-500.0,0.00043835,5]
[340880558,1730001049275,-500.0,0.00043835,5]
[340880559,1730001049297,-600.88791899,0.00043835,5]
[340880560,1730001049307,-269.50438611,0.00043835,5]
[340880561,1730001049316,-581.77612836,0.00043835,5]
[340880562,1730001049326,-500.0,0.00043835,5]
[340880563,1730001049336,-500.0,0.00043835,2]
[340880564,1730001049345,-459.71862181,0.00043835,5]
[340880565,1730001049355,-499.10834814,0.00043835,2]
[340880566,1730001049364,-244.81551603,0.00043835,5]
[340880567,1730001049373,-2924.0,0.00043836,30]
[340880568,1730001049383,-500.0,0.00043878,5]
[340880569,1730001049392,-500.0,0.00043878,5]
[340880570,1730001049402,-500.0,0.00043878,5]
[340880571,1730001049410,-500.0,0.00043878,5]
[340880572,1730001049420,-500.0,0.00043878,5]
[340880573,1730001049430,-500.0,0.00043878,5]
[340880574,1730001049439,-500.0,0.00043878,5]
[340880575,1730001049448,-564.28,0.00043878,5]
[340880576,1730001049457,-500.0,0.00043879,5]
[340880577,1730001049467,-500.0,0.00043879,5]
[340880578,1730001049476,-699.42,0.00043879,5]
[340880579,1730001049487,-500.0,0.00043879,5]
[340880580,1730001049496,-563.82,0.00043879,5]
[340880581,1730001049506,-500.0,0.00043879,5]
[340880582,1730001049519,-150.0,0.00043879,5]
[340880583,1730001049532,-500.0,0.00043879,5]
[340880584,1730001049542,-500.0,0.00043879,5]
[340880585,1730001049552,-500.0,0.00043879,5]
[340880586,1730001049561,-500.0,0.00043879,5]
[340880587,1730001049571,-500.0,0.00043879,5]
[340880588,1730001049581,-500.0,0.00043879,5]
[340880589,1730001049591,-500.0,0.00043879,5]
[340880590,1730001049601,-500.0,0.00043879,5]
[340880591,1730001049611,-500.0,0.00043879,5]
[340880592,1730001049621,-500.0,0.00043879,5]
[340880593,1730001049631,-500.0,0.00043879,5]
[340880594,1730001049641,-1295.43,0.00043879,5]
[340880595,1730001049651,-1295.43,0.00043879,5]
[340880596,1730001049661,-500.0,0.00043879,5]
[340880597,1730001049671,-500.0,0.00043879,5]
[340880598,1730001049681,-509.55,0.00043879,5]
[340880599,1730001049690,-500.0,0.00043879,5]
[340880600,1730001049700,-500.0,0.00043879,5]
[340880601,1730001049710,-500.0,0.00043879,5]
[340880602,1730001049720,-500.0,0.00043879,5]
[340880603,1730001049729,-500.0,0.00043879,5]
[340880604,1730001049739,-564.28,0.00043879,5]
[340880605,1730001049749,-500.0,0.00043879,5]
[340880606,1730001049759,-500.0,0.00043879,5]
[340880607,1730001049770,-846.58,0.00043879,5]
[340880608,1730001049779,-500.0,0.00043879,5]
[340880609,1730001049789,-1409.36,0.00043879,5]
[340880610,1730001049798,-5030.72,0.00043879,5]
[340880611,1730001049808,-500.0,0.00043879,2]
[340880612,1730001049818,-525.46,0.00043879,5]
[340880613,1730001049827,-622.12,0.00043879,5]
[340880614,1730001049836,-510.11,0.00043879,5]
[340880615,1730001049846,-500.0,0.00043879,5]
[340880616,1730001049855,-608.13,0.00043879,5]
[340880617,1730001049865,-608.13,0.00043879,5]
[340880618,1730001049874,-500.0,0.00043879,5]
[340880619,1730001049885,-500.0,0.00043879,5]
[340880620,1730001049895,-500.0,0.00043879,5]
[340880621,1730001049904,-500.0,0.00043879,5]
[340880622,1730001049913,-21698.86452498,0.0004388,2]
[340880623,1730001049934,-500.0,0.000425,120]
[340880624,1730001049943,-2174.1417808,0.0004388,2]
[340880625,1730001049955,-3676.8728,0.0004388,2]
[340880626,1730001603422,250.0,0.00015,2]
[340880636,1730002231463,-154.98,0.00015342,2]
[340880638,1730002231473,-159.18,0.00015342,2]
[340880639,1730002231482,-300.0,0.00017,2]
[340880640,1730002231493,-386.0,0.000181,2]
[340880641,1730002231503,-350.0,0.00019,2]
[340880642,1730002231514,-262.78646843,0.00034866,2]
[340880643,1730002231525,-150.0,0.00034966,2]
[340880644,1730002231534,-516.236,0.00034967,2]
[340880645,1730002231546,-556.0,0.00034967,2]
[340880646,1730002231556,-3365.0,0.00034967,2]
[340880647,1730002231566,-1913.0,0.00034967,2]
[340880648,1730002231575,-811.0,0.00034967,2]
[340880649,1730002231584,-4573.064,0.00034967,2]
[340880650,1730002231595,-154.98,0.00035616,2]
[340880651,1730002231604,-365.94,0.00037808,2]
[340880652,1730002231616,-1000.0,0.0003923,2]
[340880653,1730002231626,-508.65227646,0.00039543,5]
[340880654,1730002231636,-500.0,0.00039543,2]
[340880655,1730002231646,-170.96,0.00039569,120]
[340880656,1730002231655,-250.0,0.00039685,120]
[340880657,1730002231663,-150.0,0.00039821,7]
[340880658,1730002231672,-365.94,0.00040072,2]
[340880659,1730002231681,-1252.13577041,0.0004017,15]
[340880660,1730002231691,-7744.2295,0.0004017,2]
[340880661,1730002231700,-986.8187,0.0004017,2]
[340880662,1730002231709,-373.598,0.0004018,57]
[340880663,1730002231820,-820.0104,0.0004018,2]
[340880664,1730002231833,-50703.93938793,0.0004027,2]
[340880665,1730002231846,-290.832,0.0004027,2]
[340880666,1730002231868,-130304.83294866,0.0004027,2]
[340880667,1730002231883,-2786.09183497,0.0004027,2]
[340880668,1730002237478,-511.48200186,0.00034967,2]
[340880669,1730002237689,-574.51799814,0.00034967,2]
[340880670,1730002237698,-209.06603106,0.0004027,2]
[340880671,1730002237709,-1301.15361802,0.0004027,2]
[340880672,1730002237721,-749.86877271,0.0004027,2]
[340880673,1730002237731,-6329.97878758,0.0004027,2]
[340880674,1730002237847,-3732.09617257,0.0004027,2]
[340880696,1730002239522,-1624.45398053,0.0004027,2]
[340880697,1730002239536,-620.93310037,0.0004027,2]
[340880698,1730002239575,-2896.58360006,0.0004027,2]
[340880699,1730002239629,-2727.0184741,0.0004027,2]
[340880704,1730002242514,-1802.87758309,0.0004027,2]
[340880705,1730002242605,-38920.27370835,0.0004027,2]
[340880706,1730002242614,-500.0,0.0004027,2]
[340880707,1730002242624,-488.89278399,0.00040273,5]
[340880708,1730002242635,-1252.13577033,0.0004059,15]
[340880709,1730002242648,-1252.13577033,0.00041011,15]
[340880710,1730002242658,-4738.56897285,0.00041011,2]